[Event "*** Titled Tuesday Blitz"]
[Site "Chess.com"]
[Date "2021.02.16"]
[Round "5"]
[White "Gulkov_Igor"]
[Black "Godzillator"]
[Result "1/2-1/2"]
[WhiteElo "2468"]
[BlackElo "2279"]
[TimeControl "180+1"]
[EndTime "10:58:11 PST"]
[Termination "Game drawn by repetition"]

1. Nf3 {[%clk 0:03:00.9]} 1... d5 {[%clk 0:02:58.5]} 2. d4 {[%clk 0:03:00.1]}
2... Nf6 {[%clk 0:02:58]} 3. c4 {[%clk 0:02:59.6]} 3... c6 {[%clk 0:02:58.2]} 4.
Nc3 {[%clk 0:02:57.4]} 4... a6 {[%clk 0:02:58.3]} 5. a4 {[%clk 0:02:56.6]} 5...
e6 {[%clk 0:02:57.7]} 6. Bg5 {[%clk 0:02:54.7]} 6... a5 {[%clk 0:02:57.3]} 7. e3
{[%clk 0:02:54]} 7... Na6 {[%clk 0:02:57.7]} 8. Be2 {[%clk 0:02:53.4]} 8... Nb4
{[%clk 0:02:57.8]} 9. O-O {[%clk 0:02:52.5]} 9... Be7 {[%clk 0:02:58.3]} 10. Qb3
{[%clk 0:02:52]} 10... O-O {[%clk 0:02:57.2]} 11. Na2 {[%clk 0:02:51.6]} 11...
Nxa2 {[%clk 0:02:53.7]} 12. Qxa2 {[%clk 0:02:51.1]} 12... b6 {[%clk 0:02:50.7]}
13. cxd5 {[%clk 0:02:49.3]} 13... cxd5 {[%clk 0:02:48.5]} 14. Ne5 {[%clk
0:02:47.5]} 14... Bb7 {[%clk 0:02:41.7]} 15. Rfc1 {[%clk 0:02:43.3]} 15... Ne4
{[%clk 0:02:39.2]} 16. Bxe7 {[%clk 0:02:42.2]} 16... Qxe7 {[%clk 0:02:39.4]} 17.
Bd3 {[%clk 0:02:40.3]} 17... Nd6 {[%clk 0:02:26.2]} 18. Qa3 {[%clk 0:02:39]}
18... Rfc8 {[%clk 0:02:23.4]} 19. b4 {[%clk 0:02:30.5]} 19... f6 {[%clk
0:02:17.1]} 20. Nf3 {[%clk 0:02:29.3]} 20... Nc4 {[%clk 0:02:02.6]} 21. Bxc4
{[%clk 0:02:27]} 21... Rxc4 {[%clk 0:01:58.9]} 22. Rxc4 {[%clk 0:02:24.8]} 22...
dxc4 {[%clk 0:01:59.1]} 23. b5 {[%clk 0:02:25]} 23... Qxa3 {[%clk 0:01:52.5]}
24. Rxa3 {[%clk 0:02:24.1]} 24... Rc8 {[%clk 0:01:35.6]} 25. Rc3 {[%clk
0:02:12.1]} 25... Be4 {[%clk 0:01:23.4]} 26. Ne1 {[%clk 0:01:57.9]} 26... Kf7
{[%clk 0:01:11.1]} 27. f3 {[%clk 0:01:57.4]} 27... Bb1 {[%clk 0:01:10.7]} 28.
Kf2 {[%clk 0:01:47.7]} 28... Ba2 {[%clk 0:01:10.7]} 29. Nd3 {[%clk 0:01:31.7]}
29... Bb3 {[%clk 0:00:38.4]} 30. Nb2 {[%clk 0:01:30.2]} 30... Ke7 {[%clk
0:00:35.8]} 31. e4 {[%clk 0:01:29.5]} 31... Kd6 {[%clk 0:00:34.4]} 32. Ke3
{[%clk 0:01:29.6]} 32... e5 {[%clk 0:00:34.3]} 33. g3 {[%clk 0:01:27.1]} 33...
h5 {[%clk 0:00:31.2]} 34. f4 {[%clk 0:01:25.1]} 34... Ke6 {[%clk 0:00:23.9]} 35.
h4 {[%clk 0:01:15.1]} 35... Kd6 {[%clk 0:00:23.8]} 36. Rc1 {[%clk 0:00:36.7]}
36... c3 {[%clk 0:00:22.2]} 37. Nd3 {[%clk 0:00:36.8]} 37... Bxa4 {[%clk
0:00:20.7]} 38. fxe5+ {[%clk 0:00:33.9]} 38... fxe5 {[%clk 0:00:20.5]} 39. Nxe5
{[%clk 0:00:33.7]} 39... Bxb5 {[%clk 0:00:17.8]} 40. Nd3 {[%clk 0:00:30.2]}
40... Bxd3 {[%clk 0:00:06.8]} 41. Kxd3 {[%clk 0:00:30]} 41... b5 {[%clk
0:00:06.4]} 42. Rxc3 {[%clk 0:00:30.2]} 42... Rxc3+ {[%clk 0:00:06.4]} 43. Kxc3
{[%clk 0:00:30.4]} 43... Ke6 {[%clk 0:00:06.8]} 44. Kb3 {[%clk 0:00:30.3]} 44...
Kd6 {[%clk 0:00:06.9]} 45. Kc3 {[%clk 0:00:30.4]} 45... Ke6 {[%clk 0:00:07.4]}
46. Kb3 {[%clk 0:00:30.6]} 46... Kd6 {[%clk 0:00:07.9]} 47. Kc3 {[%clk
0:00:30.9]} 1/2-1/2

[Event "*** Titled Tuesday Blitz"]
[Site "Chess.com"]
[Date "2021.02.16"]
[Round "5"]
[White "julinha97"]
[Black "CroissantNeuf"]
[Result "0-1"]
[WhiteElo "2258"]
[BlackElo "2477"]
[TimeControl "180+1"]
[EndTime "10:58:12 PST"]
[Termination "CroissantNeuf won by resignation"]

1. e4 {[%clk 0:03:00.9]} 1... c5 {[%clk 0:02:59.6]} 2. Nf3 {[%clk 0:03:00.6]}
2... e6 {[%clk 0:02:59.6]} 3. b3 {[%clk 0:03:00.2]} 3... b6 {[%clk 0:02:58.9]}
4. Bb2 {[%clk 0:02:57.8]} 4... Bb7 {[%clk 0:02:59.4]} 5. Bd3 {[%clk 0:02:58.2]}
5... Nc6 {[%clk 0:02:57.5]} 6. c3 {[%clk 0:02:56.2]} 6... d5 {[%clk 0:02:52.9]}
7. O-O {[%clk 0:02:48]} 7... Nf6 {[%clk 0:02:51.1]} 8. e5 {[%clk 0:02:46.9]}
8... Nd7 {[%clk 0:02:50.8]} 9. Qe2 {[%clk 0:02:45]} 9... g5 {[%clk 0:02:47.1]}
10. Bb5 {[%clk 0:02:33]} 10... g4 {[%clk 0:02:34.7]} 11. Ne1 {[%clk 0:02:32.2]}
11... Qg5 {[%clk 0:02:24.2]} 12. d4 {[%clk 0:02:29.4]} 12... h5 {[%clk
0:01:55.9]} 13. Ba6 {[%clk 0:02:18.7]} 13... O-O-O {[%clk 0:01:44.4]} 14. Bxb7+
{[%clk 0:02:16.4]} 14... Kxb7 {[%clk 0:01:43.9]} 15. f4 {[%clk 0:02:05.7]} 15...
Qf5 {[%clk 0:01:23.9]} 16. Na3 {[%clk 0:02:01.4]} 16... cxd4 {[%clk 0:01:21.6]}
17. cxd4 {[%clk 0:01:59.5]} 17... Nxd4 {[%clk 0:01:05.3]} 18. Bxd4 {[%clk
0:01:38.8]} 18... Bxa3 {[%clk 0:01:04.8]} 19. Nd3 {[%clk 0:01:37.7]} 19... Qe4
{[%clk 0:00:50.7]} 20. Qxe4 {[%clk 0:01:20.5]} 20... dxe4 {[%clk 0:00:50.2]} 21.
Nf2 {[%clk 0:01:21.4]} 21... Nc5 {[%clk 0:00:39.2]} 22. Bc3 {[%clk 0:01:11.4]}
22... e3 {[%clk 0:00:33.4]} 23. Nh1 {[%clk 0:01:05.3]} 23... Ne4 {[%clk
0:00:21.4]} 24. Be1 {[%clk 0:01:01.7]} 24... e2 {[%clk 0:00:20.1]} 25. Rf2
{[%clk 0:01:02.2]} 25... Rd1 {[%clk 0:00:17.1]} 26. Rxe2 {[%clk 0:00:59.3]}
26... Bc5+ {[%clk 0:00:14.3]} 27. Kf1 {[%clk 0:00:52]} 27... Rxa1 {[%clk
0:00:10.1]} 28. Rxe4 {[%clk 0:00:52]} 28... Rd8 {[%clk 0:00:10.5]} 29. b4 {[%clk
0:00:49.2]} 29... Rd4 {[%clk 0:00:08.5]} 30. Rxd4 {[%clk 0:00:31.7]} 30... Bxd4
{[%clk 0:00:09.4]} 31. Ke2 {[%clk 0:00:30.7]} 31... Rxa2+ {[%clk 0:00:09.4]} 32.
Kd3 {[%clk 0:00:31.6]} 32... Ra1 {[%clk 0:00:06.4]} 33. Kxd4 {[%clk 0:00:28]}
33... Rxe1 {[%clk 0:00:06.3]} 34. Ng3 {[%clk 0:00:28.9]} 34... h4 {[%clk
0:00:05.7]} 35. Ne4 {[%clk 0:00:29]} 35... Re2 {[%clk 0:00:05.9]} 36. g3 {[%clk
0:00:27.6]} 36... Rxh2 {[%clk 0:00:05.4]} 37. gxh4 {[%clk 0:00:27.8]} 37... Rxh4
{[%clk 0:00:05.4]} 38. Ng5 {[%clk 0:00:28.2]} 38... g3 {[%clk 0:00:04.9]} 39.
Ke3 {[%clk 0:00:28.7]} 39... g2 {[%clk 0:00:04.6]} 40. Nf3 {[%clk 0:00:19]}
40... Rh3 {[%clk 0:00:04.5]} 41. Kf2 {[%clk 0:00:18.9]} 41... Rxf3+ {[%clk
0:00:04.7]} 42. Kxg2 {[%clk 0:00:19.8]} 42... Rb3 {[%clk 0:00:04.7]} 43. b5
{[%clk 0:00:20.7]} 43... Rxb5 {[%clk 0:00:04.8]} 44. f5 {[%clk 0:00:21.6]} 44...
exf5 {[%clk 0:00:04.3]} 0-1

[Event "*** Titled Tuesday Blitz"]
[Site "Chess.com"]
[Date "2021.02.16"]
[Round "5"]
[White "MatyChess1"]
[Black "Tashik"]
[Result "0-1"]
[WhiteElo "2599"]
[BlackElo "2443"]
[TimeControl "180+1"]
[EndTime "10:58:13 PST"]
[Termination "Tashik won by checkmate"]

1. e4 {[%clk 0:03:00.9]} 1... e5 {[%clk 0:02:54.2]} 2. Nf3 {[%clk 0:03:00.9]}
2... Nc6 {[%clk 0:02:53.5]} 3. Bc4 {[%clk 0:03:01.5]} 3... Bc5 {[%clk
0:02:52.1]} 4. c3 {[%clk 0:03:01.5]} 4... Nf6 {[%clk 0:02:49]} 5. d3 {[%clk
0:03:02]} 5... O-O {[%clk 0:02:47.9]} 6. O-O {[%clk 0:03:01.1]} 6... d5 {[%clk
0:02:48.4]} 7. exd5 {[%clk 0:03:02]} 7... Nxd5 {[%clk 0:02:48.8]} 8. a4 {[%clk
0:02:58]} 8... Bg4 {[%clk 0:02:47.1]} 9. h3 {[%clk 0:02:57.3]} 9... Bh5 {[%clk
0:02:46.6]} 10. Nbd2 {[%clk 0:02:52.9]} 10... a6 {[%clk 0:02:39.5]} 11. Ne4
{[%clk 0:02:48.3]} 11... Be7 {[%clk 0:02:37.2]} 12. Ng3 {[%clk 0:02:43.3]} 12...
Bg6 {[%clk 0:02:34.1]} 13. a5 {[%clk 0:02:43.4]} 13... Kh8 {[%clk 0:02:28.9]}
14. Re1 {[%clk 0:02:41.9]} 14... f6 {[%clk 0:02:24.7]} 15. Nh4 {[%clk 0:02:42]}
15... Bf7 {[%clk 0:02:19.6]} 16. Qf3 {[%clk 0:02:37.2]} 16... Bc5 {[%clk
0:02:14.2]} 17. Nhf5 {[%clk 0:02:28.5]} 17... Nce7 {[%clk 0:02:07.7]} 18. Nxe7
{[%clk 0:02:19.1]} 18... Bxe7 {[%clk 0:02:08.6]} 19. Nf5 {[%clk 0:02:09.1]}
19... Bc5 {[%clk 0:02:08]} 20. Qg4 {[%clk 0:01:48.1]} 20... Rg8 {[%clk
0:01:58.1]} 21. Bd2 {[%clk 0:01:38.2]} 21... Be6 {[%clk 0:01:39.2]} 22. Qf3
{[%clk 0:01:07.1]} 22... Qd7 {[%clk 0:01:38.4]} 23. Ng3 {[%clk 0:00:59.6]} 23...
Bf7 {[%clk 0:01:34.8]} 24. Nf5 {[%clk 0:00:58]} 24... c6 {[%clk 0:01:32.4]} 25.
Rad1 {[%clk 0:00:56.5]} 25... Rad8 {[%clk 0:01:25.6]} 26. Bc1 {[%clk 0:00:51.8]}
26... Ba7 {[%clk 0:01:25.2]} 27. d4 {[%clk 0:00:41.5]} 27... Be6 {[%clk
0:00:38.8]} 28. Ng3 {[%clk 0:00:26]} 28... exd4 {[%clk 0:00:37.9]} 29. cxd4
{[%clk 0:00:26.9]} 29... Bf7 {[%clk 0:00:35.5]} 30. Nf5 {[%clk 0:00:26]} 30...
Rde8 {[%clk 0:00:27.9]} 31. Qg4 {[%clk 0:00:22.6]} 31... Be6 {[%clk 0:00:16.9]}
32. Rxe6 {[%clk 0:00:08.4]} 32... Qxe6 {[%clk 0:00:16.9]} 33. Qf3 {[%clk
0:00:06]} 33... g6 {[%clk 0:00:14.9]} 34. Nh6 {[%clk 0:00:05.9]} 34... Rgf8
{[%clk 0:00:14]} 35. Ng4 {[%clk 0:00:03.4]} 35... Bb8 {[%clk 0:00:12.3]} 36. Ne3
{[%clk 0:00:02.2]} 36... Qd6 {[%clk 0:00:11.5]} 37. Nxd5 {[%clk 0:00:02.6]}
37... Qh2+ {[%clk 0:00:11.1]} 38. Kf1 {[%clk 0:00:02.8]} 38... Qh1# {[%clk
0:00:12]} 0-1

[Event "*** Titled Tuesday Blitz"]
[Site "Chess.com"]
[Date "2021.02.16"]
[Round "5"]
[White "Pantata007"]
[Black "ErikRonka"]
[Result "0-1"]
[WhiteElo "2276"]
[BlackElo "2481"]
[TimeControl "180+1"]
[EndTime "10:58:14 PST"]
[Termination "ErikRonka won by resignation"]

1. d4 {[%clk 0:03:00.9]} 1... d5 {[%clk 0:02:59.4]} 2. c4 {[%clk 0:03:01]} 2...
e6 {[%clk 0:02:56.9]} 3. Nc3 {[%clk 0:03:01.1]} 3... a6 {[%clk 0:02:57.3]} 4.
cxd5 {[%clk 0:03:00.4]} 4... exd5 {[%clk 0:02:58.2]} 5. Bf4 {[%clk 0:03:00.5]}
5... Nf6 {[%clk 0:02:57.2]} 6. e3 {[%clk 0:03:00.6]} 6... Bd6 {[%clk 0:02:57.7]}
7. Bxd6 {[%clk 0:02:52.2]} 7... Qxd6 {[%clk 0:02:58.6]} 8. Bd3 {[%clk
0:02:52.5]} 8... O-O {[%clk 0:02:56.7]} 9. Nge2 {[%clk 0:02:52.6]} 9... Bg4
{[%clk 0:02:57.1]} 10. Qc2 {[%clk 0:02:50.3]} 10... Nc6 {[%clk 0:02:55]} 11. a3
{[%clk 0:02:46.1]} 11... Ne7 {[%clk 0:02:54.7]} 12. f3 {[%clk 0:02:41.4]} 12...
Be6 {[%clk 0:02:46]} 13. O-O {[%clk 0:02:40]} 13... c5 {[%clk 0:02:29.7]} 14.
dxc5 {[%clk 0:02:11.1]} 14... Qxc5 {[%clk 0:02:29.3]} 15. Nd4 {[%clk 0:02:11.4]}
15... Rac8 {[%clk 0:02:25.1]} 16. Qf2 {[%clk 0:02:03.3]} 16... Nc6 {[%clk
0:02:17.2]} 17. Rac1 {[%clk 0:01:53]} 17... Nxd4 {[%clk 0:02:13.4]} 18. exd4
{[%clk 0:01:53.9]} 18... Qa5 {[%clk 0:02:03.8]} 19. Rfe1 {[%clk 0:01:50.6]}
19... b5 {[%clk 0:02:00]} 20. h3 {[%clk 0:01:12]} 20... Rc6 {[%clk 0:01:48.9]}
21. b4 {[%clk 0:00:47]} 21... Qxa3 {[%clk 0:01:35.8]} 22. Ne2 {[%clk 0:00:23.5]}
22... Rxc1 {[%clk 0:01:32.8]} 23. Rxc1 {[%clk 0:00:24.4]} 23... Qxb4 {[%clk
0:01:32.5]} 24. g4 {[%clk 0:00:17.1]} 24... Rc8 {[%clk 0:01:28.3]} 25. Rxc8+
{[%clk 0:00:16.1]} 25... Bxc8 {[%clk 0:01:29.2]} 26. Nf4 {[%clk 0:00:16.3]}
26... Qd6 {[%clk 0:01:20.3]} 27. Qe3 {[%clk 0:00:15.6]} 27... h6 {[%clk
0:01:15.8]} 28. h4 {[%clk 0:00:15.4]} 28... Bd7 {[%clk 0:01:07.2]} 29. g5 {[%clk
0:00:15.2]} 29... hxg5 {[%clk 0:01:07.1]} 30. hxg5 {[%clk 0:00:16.1]} 30... Nh7
{[%clk 0:00:53.7]} 31. g6 {[%clk 0:00:13.6]} 31... fxg6 {[%clk 0:00:49.8]} 32.
Bxg6 {[%clk 0:00:10.6]} 32... Nf8 {[%clk 0:00:45.5]} 33. Bd3 {[%clk 0:00:07]}
33... Ne6 {[%clk 0:00:36.6]} 34. Ng6 {[%clk 0:00:03.8]} 34... Qg3+ {[%clk
0:00:33.4]} 35. Kf1 {[%clk 0:00:04]} 35... Qh3+ {[%clk 0:00:30.7]} 36. Ke2
{[%clk 0:00:03.6]} 36... Qh2+ {[%clk 0:00:28.8]} 37. Ke1 {[%clk 0:00:03.6]}
37... Qg3+ {[%clk 0:00:18.1]} 38. Ke2 {[%clk 0:00:03.4]} 38... Qg5 {[%clk
0:00:16.6]} 39. Ne7+ {[%clk 0:00:01.8]} 39... Qxe7 {[%clk 0:00:16]} 40. Qe5
{[%clk 0:00:01.9]} 40... Nxd4+ {[%clk 0:00:15.6]} 0-1

[Event "*** Titled Tuesday Blitz"]
[Site "Chess.com"]
[Date "2021.02.16"]
[Round "5"]
[White "kayrakamer"]
[Black "ErikBlomqvist"]
[Result "1-0"]
[WhiteElo "2705"]
[BlackElo "2525"]
[TimeControl "180+1"]
[EndTime "10:58:16 PST"]
[Termination "kayrakamer won by resignation"]

1. e4 {[%clk 0:03:00.9]} 1... c6 {[%clk 0:02:59.1]} 2. d4 {[%clk 0:03:00.7]}
2... d5 {[%clk 0:02:59.4]} 3. f3 {[%clk 0:03:01.4]} 3... e6 {[%clk 0:02:57]} 4.
Nc3 {[%clk 0:03:01.2]} 4... Bb4 {[%clk 0:02:53.9]} 5. Bf4 {[%clk 0:02:57.9]}
5... Ne7 {[%clk 0:02:49.1]} 6. Qd3 {[%clk 0:02:57.6]} 6... b6 {[%clk 0:02:46.3]}
7. Ne2 {[%clk 0:02:57.7]} 7... Ba6 {[%clk 0:02:42.5]} 8. Qe3 {[%clk 0:02:57.6]}
8... O-O {[%clk 0:02:37.2]} 9. O-O-O {[%clk 0:02:57.4]} 9... Nd7 {[%clk
0:02:26.4]} 10. a3 {[%clk 0:02:57.3]} 10... Bxc3 {[%clk 0:02:22.5]} 11. Nxc3
{[%clk 0:02:58.2]} 11... Bxf1 {[%clk 0:02:22.2]} 12. Rhxf1 {[%clk 0:02:59.1]}
12... Re8 {[%clk 0:02:18.4]} 13. g4 {[%clk 0:02:55.1]} 13... b5 {[%clk
0:02:11.1]} 14. h4 {[%clk 0:02:36.7]} 14... Nb6 {[%clk 0:02:07.7]} 15. h5 {[%clk
0:02:26.5]} 15... Nc4 {[%clk 0:01:59.2]} 16. Qd3 {[%clk 0:02:26.9]} 16... a5
{[%clk 0:01:59.5]} 17. h6 {[%clk 0:02:27.3]} 17... g6 {[%clk 0:01:51.5]} 18.
exd5 {[%clk 0:02:23.6]} 18... Nxd5 {[%clk 0:01:46.1]} 19. Nxd5 {[%clk
0:02:21.9]} 19... exd5 {[%clk 0:01:35.2]} 20. g5 {[%clk 0:02:07.3]} 20... Qd7
{[%clk 0:01:27.3]} 21. Rfe1 {[%clk 0:01:46.6]} 21... a4 {[%clk 0:01:20]} 22. Be5
{[%clk 0:01:40.2]} 22... Nxe5 {[%clk 0:01:05.3]} 23. dxe5 {[%clk 0:01:37.8]}
23... Rad8 {[%clk 0:00:55.4]} 24. Qd4 {[%clk 0:01:33]} 24... Qe6 {[%clk
0:00:45.4]} 25. f4 {[%clk 0:01:29.6]} 25... Rd7 {[%clk 0:00:30.4]} 26. Rf1
{[%clk 0:01:28]} 26... Qf5 {[%clk 0:00:30.4]} 27. Qc5 {[%clk 0:01:21.8]} 27...
Re6 {[%clk 0:00:27.5]} 28. Qb6 {[%clk 0:01:08.6]} 28... Rde7 {[%clk 0:00:27.7]}
29. Kb1 {[%clk 0:00:57.3]} 29... Re8 {[%clk 0:00:23.3]} 30. Qc7 {[%clk
0:00:55.5]} 30... R8e7 {[%clk 0:00:21.2]} 31. Qb8+ {[%clk 0:00:49.8]} 31... Re8
{[%clk 0:00:21.6]} 32. Qb6 {[%clk 0:00:50.7]} 32... R8e7 {[%clk 0:00:21.8]} 33.
Qd4 {[%clk 0:00:46.6]} 33... Re8 {[%clk 0:00:21.5]} 34. Rfe1 {[%clk 0:00:45.1]}
34... Kf8 {[%clk 0:00:20.6]} 35. Re3 {[%clk 0:00:43.8]} 35... Kg8 {[%clk
0:00:20.9]} 36. Rc3 {[%clk 0:00:43.6]} 36... Qg4 {[%clk 0:00:18.4]} 37. Rdd3
{[%clk 0:00:37.9]} 37... Rd8 {[%clk 0:00:11.7]} 38. Rf3 {[%clk 0:00:35.2]} 38...
Rc8 {[%clk 0:00:09.5]} 39. Qxd5 {[%clk 0:00:24.2]} 39... Ree8 {[%clk 0:00:08.2]}
40. Rxc6 {[%clk 0:00:20.2]} 40... Rcd8 {[%clk 0:00:03.4]} 41. Rd6 {[%clk
0:00:15.9]} 41... Qf5 {[%clk 0:00:01.3]} 1-0

[Event "*** Titled Tuesday Blitz"]
[Site "Chess.com"]
[Date "2021.02.16"]
[Round "5"]
[White "Mr_Heisenberg13"]
[Black "Rap_woyska"]
[Result "1-0"]
[WhiteElo "2699"]
[BlackElo "2521"]
[TimeControl "180+1"]
[EndTime "10:58:17 PST"]
[Termination "Mr_Heisenberg13 won by resignation"]

1. e4 {[%clk 0:03:00.9]} 1... e6 {[%clk 0:02:43.5]} 2. d4 {[%clk 0:02:58.7]}
2... d5 {[%clk 0:02:43.6]} 3. exd5 {[%clk 0:02:59.4]} 3... exd5 {[%clk
0:02:44.5]} 4. Nf3 {[%clk 0:02:59.6]} 4... Nc6 {[%clk 0:02:45.1]} 5. Bb5 {[%clk
0:02:58.8]} 5... Bd6 {[%clk 0:02:42.6]} 6. c4 {[%clk 0:02:58.8]} 6... dxc4
{[%clk 0:02:42]} 7. d5 {[%clk 0:02:59.7]} 7... a6 {[%clk 0:02:41.6]} 8. Ba4
{[%clk 0:02:59.4]} 8... b5 {[%clk 0:02:31.7]} 9. dxc6 {[%clk 0:02:59.4]} 9...
bxa4 {[%clk 0:02:31.2]} 10. O-O {[%clk 0:03:00.3]} 10... Ne7 {[%clk 0:02:30.9]}
11. Nbd2 {[%clk 0:02:58.8]} 11... O-O {[%clk 0:02:11.5]} 12. Nxc4 {[%clk
0:02:56.3]} 12... Bc5 {[%clk 0:01:49.9]} 13. Qxa4 {[%clk 0:02:51.2]} 13... Be6
{[%clk 0:01:38.9]} 14. Nce5 {[%clk 0:02:46.8]} 14... Ng6 {[%clk 0:01:25.7]} 15.
Rd1 {[%clk 0:02:41.2]} 15... Qf6 {[%clk 0:01:11.3]} 16. Bg5 {[%clk 0:02:39.4]}
16... Qf5 {[%clk 0:01:11.4]} 17. g4 {[%clk 0:02:17.4]} 17... Nxe5 {[%clk
0:01:11.2]} 18. gxf5 {[%clk 0:02:17.3]} 18... Nxf3+ {[%clk 0:01:11.7]} 19. Kg2
{[%clk 0:02:17.6]} 19... Nxg5 {[%clk 0:01:12.6]} 20. fxe6 {[%clk 0:02:17.7]}
20... fxe6 {[%clk 0:01:12.5]} 21. Rd2 {[%clk 0:02:15.3]} 21... Nf3 {[%clk
0:01:05.8]} 22. Rc2 {[%clk 0:02:09.4]} 22... Bb6 {[%clk 0:01:05]} 23. Qe4 {[%clk
0:02:03.6]} 23... e5 {[%clk 0:00:56.4]} 24. Qxf3 {[%clk 0:02:01.1]} 24... Rxf3
{[%clk 0:00:56.1]} 25. Kxf3 {[%clk 0:02:02]} 25... Bd4 {[%clk 0:00:52.7]} 26.
Rd1 {[%clk 0:01:57.1]} 26... Kf7 {[%clk 0:00:48.7]} 27. Ke4 {[%clk 0:01:56.2]}
27... Ke6 {[%clk 0:00:49]} 28. f4 {[%clk 0:01:45.2]} 28... Rf8 {[%clk 0:00:49]}
29. Rf1 {[%clk 0:01:45.1]} 29... g5 {[%clk 0:00:39]} 30. f5+ {[%clk 0:01:41.6]}
30... Kf6 {[%clk 0:00:37.7]} 31. b3 {[%clk 0:01:37.9]} 31... Rb8 {[%clk
0:00:34.6]} 32. Rc4 {[%clk 0:01:37.1]} 32... Rb6 {[%clk 0:00:34.6]} 33. h3
{[%clk 0:01:19.3]} 33... h5 {[%clk 0:00:34.4]} 34. Rfc1 {[%clk 0:01:16.4]} 34...
g4 {[%clk 0:00:27.7]} 35. hxg4 {[%clk 0:01:15.4]} 35... hxg4 {[%clk 0:00:28.6]}
36. Rh1 {[%clk 0:01:15.5]} 36... g3 {[%clk 0:00:26.2]} 37. Rh6+ {[%clk
0:01:15.1]} 37... Kf7 {[%clk 0:00:19]} 38. Rg6 {[%clk 0:01:14.6]} 38... Bf2
{[%clk 0:00:16]} 39. Kxe5 {[%clk 0:01:13.6]} 39... Rb5+ {[%clk 0:00:16.6]} 40.
Kf4 {[%clk 0:01:12.2]} 40... Rd5 {[%clk 0:00:16.6]} 41. Re4 {[%clk 0:00:55.1]}
41... Bc5 {[%clk 0:00:15]} 42. Kxg3 {[%clk 0:00:48.4]} 42... Rxf5 {[%clk
0:00:15.6]} 43. Rh6 {[%clk 0:00:47.4]} 43... Bd6+ {[%clk 0:00:14]} 44. Rxd6
{[%clk 0:00:26.1]} 44... cxd6 {[%clk 0:00:14.9]} 45. c7 {[%clk 0:00:21.7]} 45...
Rg5+ {[%clk 0:00:10.7]} 46. Rg4 {[%clk 0:00:21.8]} 46... Rc5 {[%clk 0:00:10.9]}
47. Rc4 {[%clk 0:00:21.8]} 1-0

[Event "*** Titled Tuesday Blitz"]
[Site "Chess.com"]
[Date "2021.02.16"]
[Round "5"]
[White "Grineva_Marianna"]
[Black "Eloist"]
[Result "1-0"]
[WhiteElo "2245"]
[BlackElo "2396"]
[TimeControl "180+1"]
[EndTime "10:58:18 PST"]
[Termination "Grineva_Marianna won on time"]

1. e4 {[%clk 0:03:00.9]} 1... e6 {[%clk 0:02:58.9]} 2. d4 {[%clk 0:03:00.4]}
2... d5 {[%clk 0:02:58.2]} 3. Nd2 {[%clk 0:03:00.7]} 3... Nf6 {[%clk 0:02:58.3]}
4. e5 {[%clk 0:03:00.9]} 4... Nfd7 {[%clk 0:02:58.4]} 5. Bd3 {[%clk 0:03:01.5]}
5... c5 {[%clk 0:02:58.9]} 6. c3 {[%clk 0:03:02]} 6... b6 {[%clk 0:02:59.2]} 7.
Ne2 {[%clk 0:03:02]} 7... Ba6 {[%clk 0:02:59.2]} 8. Nf3 {[%clk 0:02:52.6]} 8...
Bxd3 {[%clk 0:02:58.1]} 9. Qxd3 {[%clk 0:02:53.5]} 9... c4 {[%clk 0:02:58.4]}
10. Qe3 {[%clk 0:02:53.1]} 10... Nc6 {[%clk 0:02:58.6]} 11. O-O {[%clk
0:02:52.1]} 11... b5 {[%clk 0:02:58.7]} 12. Qf4 {[%clk 0:02:50.8]} 12... Be7
{[%clk 0:02:58.1]} 13. h4 {[%clk 0:02:47.8]} 13... a5 {[%clk 0:02:53.6]} 14. Ng3
{[%clk 0:02:45.1]} 14... O-O {[%clk 0:02:46.2]} 15. Qg4 {[%clk 0:02:42]} 15...
Kh8 {[%clk 0:02:41.9]} 16. Ng5 {[%clk 0:02:31.6]} 16... h6 {[%clk 0:02:34.1]}
17. Nxf7+ {[%clk 0:02:17.6]} 17... Rxf7 {[%clk 0:02:35]} 18. Qxe6 {[%clk
0:02:17.8]} 18... Ndxe5 {[%clk 0:01:26.1]} 19. dxe5 {[%clk 0:02:09]} 19... Qe8
{[%clk 0:01:23.1]} 20. Qxd5 {[%clk 0:01:50]} 20... Bxh4 {[%clk 0:01:20]} 21. e6
{[%clk 0:01:43.9]} 21... Rf6 {[%clk 0:00:50.8]} 22. Nf5 {[%clk 0:01:36.1]} 22...
Rd8 {[%clk 0:00:35.4]} 23. Qxb5 {[%clk 0:01:27.9]} 23... Bg5 {[%clk 0:00:18]}
24. Bxg5 {[%clk 0:01:26.1]} 24... hxg5 {[%clk 0:00:18]} 25. Rad1 {[%clk
0:00:47.3]} 25... Rxd1 {[%clk 0:00:16.2]} 26. Rxd1 {[%clk 0:00:46.8]} 26... Rxe6
{[%clk 0:00:16.6]} 27. Qxc4 {[%clk 0:00:25.8]} 27... Re1+ {[%clk 0:00:12.4]} 28.
Rxe1 {[%clk 0:00:24.9]} 28... Qxe1+ {[%clk 0:00:13.3]} 29. Qf1 {[%clk 0:00:25]}
29... Qe4 {[%clk 0:00:09.9]} 30. Nd6 {[%clk 0:00:19.9]} 30... Qd5 {[%clk
0:00:09.3]} 31. Nc4 {[%clk 0:00:19.1]} 31... a4 {[%clk 0:00:08]} 32. Ne3 {[%clk
0:00:19]} 32... Qxa2 {[%clk 0:00:07]} 33. Qb5 {[%clk 0:00:18.2]} 33... Qa1+
{[%clk 0:00:02.6]} 34. Kh2 {[%clk 0:00:18.4]} 34... Ne7 {[%clk 0:00:02.7]} 35.
Qe8+ {[%clk 0:00:17.6]} 35... Ng8 {[%clk 0:00:02.6]} 36. Qh5+ {[%clk 0:00:13.8]}
36... Nh6 {[%clk 0:00:02.6]} 37. Nc4 {[%clk 0:00:11.7]} 37... Qa2 {[%clk
0:00:02.1]} 38. Qe8+ {[%clk 0:00:10.9]} 38... Kh7 {[%clk 0:00:01.5]} 39. Qe4+
{[%clk 0:00:10.5]} 39... Kh8 {[%clk 0:00:01.7]} 40. f3 {[%clk 0:00:08.5]} 1-0